bitfinex/quotes_BTCUSD_20260310
["timestamp","ask_amount","ask_price","bid_price","bid_amount"]
[1773125622842,0.07148269,69948.0,69930.0,0.00144]
[1773125622843,0.00528858,69957.0,69932.0,0.05452338]
[1773125623063,0.00528858,69955.0,69941.0,0.03844894]
[1773125623251,0.00528858,69953.0,69941.0,0.00144]
[1773125623521,0.00528858,69952.0,69941.0,0.00144]
[1773125624341,0.00528858,69952.0,69941.0,0.07292858]
[1773125625199,0.03,69947.0,69941.0,0.07292858]
[1773125625398,0.03,69947.0,69941.0,0.07148858]
[1773125625695,0.03,69947.0,69940.0,0.07168931]
[1773125626621,0.03,69947.0,69940.0,0.07168967]
[1773125627556,0.03,69947.0,69941.0,0.00144]
[1773125627755,0.07147758,69952.0,69942.0,0.03844894]
[1773125627960,0.07147521,69955.0,69942.0,0.03844894]
[1773125628791,0.03,69954.0,69942.0,0.03844894]
[1773125629519,0.00022001,69951.0,69942.0,0.03844894]
[1773125629811,0.03,69950.0,69943.0,0.07148678]
[1773125629957,0.00022001,69951.0,69944.0,0.04302261]
[1773125630958,0.03022001,69951.0,69944.0,0.04302261]
[1773125632210,0.07147521,69955.0,69944.0,0.04302261]
[1773125632211,0.03,69950.0,69944.0,0.04302261]
[1773125632465,0.07169171,69958.0,69946.0,0.04302261]
[1773125632656,0.07169171,69958.0,69947.0,0.00144]
[1773125632813,0.07698029,69958.0,69947.0,0.00144]
[1773125633421,0.03,69957.0,69947.0,0.00144]
[1773125633617,0.03528858,69957.0,69947.0,0.00144]
[1773125633833,0.00528858,69956.0,69947.0,0.00144]
[1773125634237,0.03,69955.0,69948.0,0.07148167]
[1773125634572,0.00528858,69954.0,69948.0,0.07148167]
[1773125636122,0.03,69955.0,69948.0,0.07148167]
[1773125636346,0.03,69954.0,69948.0,0.07148167]
[1773125637226,0.03,69955.0,69948.0,0.07148167]
[1773125637430,0.03,69953.0,69948.0,0.07148167]
[1773125638484,0.03,69952.0,69948.0,0.07148167]
[1773125639230,0.07168748,69962.0,69949.0,0.04302261]
[1773125639529,0.07168748,69962.0,69953.0,0.04302261]
[1773125639530,0.03,69961.0,69953.0,0.04302261]
[1773125639728,0.03,69961.0,69954.0,0.04446261]
[1773125640634,0.03528858,69960.0,69955.0,0.07147451]
[1773125640849,0.03,69960.0,69955.0,0.07147451]
[1773125640996,0.03528858,69960.0,69955.0,0.07147451]
[1773125641567,0.00528858,69960.0,69955.0,0.07147451]
[1773125641738,0.03022001,69962.0,69955.0,0.07147451]
[1773125642125,0.00022001,69963.0,69956.0,0.04302261]
[1773125642875,0.00022001,69963.0,69957.0,0.07147247]
[1773125644753,0.00042221,69963.0,69957.0,0.07147247]
[1773125644930,0.03,69962.0,69957.0,0.07147247]
[1773125645139,0.03,69962.0,69955.0,0.07147384]
[1773125645563,0.0302022,69962.0,69955.0,0.07147384]
[1773125646169,0.00528858,69961.0,69955.0,0.07147384]
[1773125646545,0.00549078,69961.0,69955.0,0.07147384]
[1773125649432,0.03549078,69961.0,69955.0,0.07147384]
[1773125650486,0.00549078,69961.0,69955.0,0.07147384]
[1773125655745,0.00549078,69961.0,69955.0,0.07167384]
[1773125659637,0.0002022,69961.0,69955.0,0.07167384]
[1773125662326,0.00528858,69972.0,69956.0,0.04235544]
[1773125662500,0.0716804,69969.0,69959.0,0.05452338]
[1773125662908,0.00528858,69968.0,69959.0,0.05452338]
[1773125663288,0.03528858,69968.0,69959.0,0.05452338]
[1773125663488,0.03528858,69968.0,69960.0,0.00144]
[1773125663884,0.00022001,69962.0,69960.0,0.00144]
[1773125664134,0.03528858,69968.0,69960.0,0.00144]
[1773125664339,0.10675033,69968.0,69961.0,0.07146838]
[1773125664545,0.10675033,69968.0,69960.0,0.07290939]
[1773125666580,0.00022001,69970.0,69961.0,0.04235544]
[1773125667145,0.07167931,69970.0,69961.0,0.04235544]
[1773125667713,0.03,69969.0,69961.0,0.04235544]
[1773125668697,0.03,69967.0,69961.0,0.11382319]
[1773125668902,0.03,69967.0,69961.0,0.07146775]
[1773125669769,0.03528858,69968.0,69961.0,0.07146775]
[1773125670363,0.10675013,69968.0,69961.0,0.07146775]
[1773125670577,0.00528858,69967.0,69960.0,0.07290933]
[1773125671324,0.03528858,69967.0,69960.0,0.07290933]
[1773125672534,0.03,69968.0,69960.0,0.07146933]
[1773125672741,0.03,69968.0,69961.0,0.00144]
[1773125673393,0.00528858,69967.0,69962.0,0.00144]
[1773125674548,0.00528858,69967.0,69959.0,0.07146999]
[1773125674749,0.00528858,69967.0,69960.0,0.00144]
[1773125676348,0.03528858,69967.0,69960.0,0.00144]
[1773125676771,0.03,69967.0,69961.0,0.07146838]
[1773125677004,0.00022001,69967.0,69961.0,0.11224782]
[1773125677655,0.00550859,69967.0,69960.0,0.0729093]
[1773125678062,0.00550859,69967.0,69960.0,0.0714693]
[1773125679597,0.03,69966.0,69958.0,0.00144]
[1773125679801,0.03,69966.0,69950.0,0.09528157]
[1773125679802,0.00528858,69965.0,69948.0,0.07168116]
[1773125679954,0.00528858,69963.0,69948.0,0.07312116]
[1773125680155,0.00528858,69961.0,69948.0,0.07168116]
[1773125680398,0.00528858,69961.0,69949.0,0.00144]
[1773125680602,0.00528858,69961.0,69950.0,0.00144]
[1773125681550,0.00528858,69961.0,69949.0,0.00144]
[1773125682377,0.00528858,69961.0,69950.0,0.00144]
[1773125682378,0.03528858,69959.0,69950.0,0.00144]
[1773125682552,0.00528858,69958.0,69948.0,0.0002]
[1773125683281,0.00528858,69958.0,69944.0,0.07168576]
[1773125683937,0.03,69956.0,69944.0,0.0002]
[1773125684117,0.00528858,69953.0,69944.0,0.0002]
[1773125684687,0.00528858,69950.0,69944.0,0.0002]
[1773125685089,0.00528858,69950.0,69948.0,0.0002]
[1773125686590,0.00628858,69950.0,69948.0,0.0002]
[1773125686764,0.10676923,69949.0,69948.0,0.0002]
[1773125686990,0.00528858,69948.0,69935.0,0.07149495]
[1773125687191,0.00528858,69948.0,69933.0,0.07149631]
[1773125687394,0.00528858,69948.0,69929.0,0.04101584]
[1773125687395,0.00528858,69948.0,69930.0,0.05450213]
[1773125687811,0.10292065,69949.0,69939.0,0.04077944]
[1773125688506,0.00528858,69948.0,69935.0,0.00144]
[1773125688706,0.00528858,69948.0,69935.0,0.04221944]
[1773125688931,0.03,69946.0,69936.0,0.07149393]
[1773125689180,0.03,69946.0,69937.0,0.03716278]
[1773125691606,0.10148434,69946.0,69938.0,0.07149189]
[1773125691816,0.07148269,69947.0,69938.0,0.07149189]
[1773125691817,0.00144,69957.0,69939.0,0.03716278]
[1773125692034,0.03714356,69956.0,69940.0,0.00144]
[1773125692183,0.00528858,69955.0,69940.0,0.00144]
[1773125692618,0.00528858,69955.0,69938.0,0.07149189]
[1773125692991,0.00528858,69955.0,69939.0,0.00144]
[1773125693450,0.07147554,69954.0,69941.0,0.07148882]
[1773125693741,0.00528858,69953.0,69941.0,0.07148882]
[1773125695344,0.07147554,69954.0,69934.0,0.00144]
[1773125695345,0.00528858,69950.0,69934.0,0.00144]
[1773125695573,0.00528858,69948.0,69935.0,0.07149495]
[1773125697603,0.00528858,69946.0,69932.0,0.10865978]
[1773125698526,0.00528858,69946.0,69931.0,0.07293891]
[1773125699216,0.00528858,69946.0,69930.0,0.07149994]
[1773125699385,0.00528858,69946.0,69929.0,0.07173702]
[1773125699590,0.00528858,69944.0,69930.0,0.00144]
[1773125699836,0.00528858,69942.0,69930.0,0.00144]
[1773125700026,0.00528858,69942.0,69931.0,0.00144]
[1773125700430,0.00528858,69942.0,69929.0,0.07173702]
[1773125700590,0.00528858,69942.0,69930.0,0.00144]
[1773125700792,0.07148678,69943.0,69931.0,0.03716278]
[1773125701688,0.07677536,69943.0,69932.0,0.0002]
[1773125701911,0.03,69940.0,69932.0,0.07169802]
[1773125702517,0.03,69940.0,69932.0,0.1088608]
[1773125703259,0.03,69940.0,69932.0,0.07169802]
[1773125703472,0.07148678,69943.0,69933.0,0.03716278]
[1773125704046,0.07677536,69943.0,69933.0,0.03716278]
[1773125704455,0.03,69942.0,69933.0,0.03716278]
[1773125704830,0.03,69942.0,69933.0,0.07149631]
[1773125705029,0.03,69942.0,69934.0,0.039255]
[1773125705225,0.03,69942.0,69934.0,0.0395823]
[1773125705944,0.0714824,69948.0,69935.0,0.07149495]
[1773125706165,0.0714824,69948.0,69936.0,0.040695]
[1773125706575,0.0714824,69948.0,69939.0,0.039255]
[1773125706965,0.03,69947.0,69939.0,0.039255]
[1773125707402,0.03,69947.0,69939.0,0.0394264]
[1773125707965,0.03,69945.0,69939.0,0.07166185]
[1773125708167,0.03,69945.0,69940.0,0.039255]
[1773125708409,0.07147861,69951.0,69940.0,0.039255]
[1773125708611,0.07147861,69951.0,69941.0,0.039255]
[1773125708981,0.06,69948.0,69941.0,0.039255]
[1773125709161,0.07169446,69956.0,69943.0,0.039255]
[1773125709397,0.07169446,69956.0,69943.0,0.0394264]
[1773125710057,0.07169446,69956.0,69944.0,0.07148576]
[1773125710257,0.03,69955.0,69944.0,0.07148576]
[1773125710432,0.03,69955.0,69944.0,0.07165716]
[1773125710630,0.03528858,69955.0,69944.0,0.07165716]
[1773125712040,0.07147656,69953.0,69944.0,0.0001714]
[1773125712241,0.00528858,69951.0,69942.0,0.00144]
[1773125712459,0.03,69952.0,69936.0,0.07164957]
[1773125712460,0.03,69949.0,69936.0,0.07164957]
[1773125712770,0.00528858,69946.0,69928.0,0.044875]
[1773125712993,0.00528858,69946.0,69931.0,0.07149877]
[1773125713439,0.00528858,69944.0,69932.0,0.00164]
[1773125713790,0.00528858,69944.0,69932.0,0.0002]
[1773125714600,0.00528858,69941.0,69932.0,0.07169802]
[1773125718468,0.03,69939.0,69932.0,0.07169802]
[1773125719762,0.03,69938.0,69932.0,0.07169802]
[1773125720099,0.03,69938.0,69932.0,0.0012]
[1773125721126,0.03,69938.0,69932.0,0.0002]
[1773125721706,0.03,69939.0,69932.0,0.0002]
[1773125723193,0.03,69939.0,69932.0,0.0012]
[1773125723392,0.03636933,69938.0,69909.0,0.0395074]
[1773125723594,0.07149495,69935.0,69911.0,0.039255]
[1773125723802,0.00528858,69933.0,69920.0,0.05450213]
[1773125724003,0.00528858,69933.0,69921.0,0.00144]
[1773125725896,0.03,69931.0,69921.0,0.07294894]
[1773125726500,0.03,69931.0,69921.0,0.11220394]
[1773125727791,0.07149718,69934.0,69922.0,0.039255]
[1773125727792,0.07149607,69934.0,69922.0,0.039255]
[1773125728014,0.00144,69936.0,69923.0,0.11076222]
[1773125728481,0.00144,69936.0,69923.0,0.07150722]
[1773125728792,0.03144,69936.0,69924.0,0.039255]
[1773125728930,0.03,69936.0,69924.0,0.039255]
[1773125729135,0.03,69936.0,69926.0,0.05450213]
[1773125729360,0.03,69936.0,69924.0,0.039255]
[1773125729966,0.03,69934.0,69924.0,0.11076032]
[1773125730775,0.00528858,69933.0,69923.0,0.07150722]
[1773125731179,0.03,69934.0,69923.0,0.11076222]
[1773125731568,0.07149495,69935.0,69923.0,0.11076222]
[1773125731764,0.00528858,69934.0,69923.0,0.11076222]
[1773125731993,0.03,69932.0,69923.0,0.11076222]
[1773125732198,0.03528858,69932.0,69921.0,0.07314834]
[1773125734152,0.03,69930.0,69921.0,0.07314834]
[1773125734300,0.07149904,69931.0,69921.0,0.07314834]
[1773125734892,0.00528858,69932.0,69921.0,0.11199328]
[1773125735098,0.071497,69934.0,69922.0,0.03884494]
[1773125735099,0.03,69934.0,69922.0,0.03884494]
[1773125735833,0.03,69934.0,69923.0,0.0002]
[1773125736023,0.03,69934.0,69924.0,0.03884494]
[1773125736360,0.03,69932.0,69925.0,0.07150518]
[1773125736489,0.071497,69933.0,69925.0,0.07150518]
[1773125737090,0.0714965,69934.0,69925.0,0.07150518]
[1773125737294,0.03,69933.0,69925.0,0.07150518]
[1773125738970,0.0051115,69931.0,69924.0,0.07150518]
[1773125739424,0.0051115,69931.0,69923.0,0.07170722]
[1773125741186,0.03,69930.0,69923.0,0.07170722]
[1773125741813,0.03,69930.0,69922.0,0.07150769]
[1773125742338,0.00520004,69929.0,69921.0,0.07314916]
[1773125742905,0.00520004,69929.0,69919.0,0.00144]
[1773125743105,0.00520004,69929.0,69919.0,0.05599418]
[1773125743305,0.03,69927.0,69920.0,0.07151029]
[1773125744447,0.03,69928.0,69920.0,0.07151029]
[1773125745444,0.03520004,69931.0,69920.0,0.07151029]
[1773125745715,0.03,69929.0,69920.0,0.07151029]
[1773125746745,0.03,69929.0,69920.0,0.11035523]
[1773125747932,0.10150119,69929.0,69920.0,0.11035523]
[1773125748531,0.10150119,69929.0,69920.0,0.11135523]
[1773125748830,0.10150119,69929.0,69920.0,0.11035523]
[1773125751227,0.10150119,69929.0,69920.0,0.07151029]
[1773125751635,0.00520004,69928.0,69919.0,0.12770548]
[1773125751836,0.00520004,69928.0,69919.0,0.0731513]
[1773125752210,0.03,69926.0,69919.0,0.0731513]
[1773125755098,0.03,69926.0,69920.0,0.0002]
[1773125755443,0.03,69925.0,69920.0,0.0377274]
[1773125755649,0.07150119,69929.0,69920.0,0.0377274]
[1773125756504,0.03,69928.0,69920.0,0.0377274]
[1773125756683,0.03,69928.0,69920.0,0.0002]
[1773125757818,0.03,69926.0,69920.0,0.0002]
[1773125770188,0.03,69925.0,69920.0,0.0002]
[1773125770591,0.00520004,69924.0,69921.0,0.00144]
[1773125770789,0.03,69922.0,69900.0,0.00585]
[1773125770995,0.03,69913.0,69903.0,0.00144]
[1773125771196,0.00520004,69912.0,69903.0,0.00144]
[1773125771401,0.00520004,69912.0,69904.0,0.00144]
[1773125771635,0.03,69910.0,69904.0,0.00144]
[1773125771936,0.00520004,69909.0,69904.0,0.00144]
[1773125772313,0.00520004,69909.0,69901.0,0.07152968]
[1773125772493,0.00520004,69909.0,69900.0,0.07738041]
[1773125773502,0.07152257,69908.0,69900.0,0.07738041]
[1773125773709,0.00520004,69906.0,69901.0,0.00144]
[1773125774505,0.00520004,69906.0,69900.0,0.07738041]
[1773125774708,0.00520004,69906.0,69901.0,0.00144]
[1773125775443,0.00520004,69906.0,69901.0,0.07296966]
[1773125776074,0.00520004,69906.0,69901.0,0.07152966]
[1773125776249,0.00520004,69906.0,69901.0,0.07296966]
[1773125776563,0.00520004,69906.0,69901.0,0.07152966]
[1773125776868,0.00520004,69906.0,69901.0,0.07296966]
[1773125777504,0.03,69907.0,69901.0,0.07296966]
[1773125778066,0.1015236,69907.0,69901.0,0.00144]
[1773125778489,0.03,69906.0,69899.0,0.00644]
[1773125779058,0.0715228,69908.0,69899.0,0.00644]
[1773125779794,0.03,69905.0,69899.0,0.00644]
[1773125779993,0.03,69905.0,69899.0,0.07797148]
[1773125780796,0.03,69904.0,69900.0,0.005]
[1773125781702,0.03,69906.0,69900.0,0.005]
[1773125781908,0.03,69906.0,69900.0,0.0052]
[1773125782374,0.03022001,69906.0,69900.0,0.0052]
[1773125783590,0.03,69905.0,69900.0,0.07172982]
[1773125783843,0.00023,69925.0,69901.0,0.005]
[1773125784069,0.07150734,69923.0,69909.0,0.03481938]
[1773125784302,0.07150734,69923.0,69911.0,0.005]
[1773125784781,0.03,69922.0,69911.0,0.005]
[1773125784975,0.07173529,69925.0,69912.0,0.05455418]
[1773125785167,0.07173529,69925.0,69914.0,0.005]
[1773125785372,0.07173529,69925.0,69916.0,0.005]
[1773125785576,0.07173529,69925.0,69917.0,0.00144]
[1773125785757,0.03,69924.0,69917.0,0.00144]
[1773125786145,0.03,69924.0,69917.0,0.0016084]
[1773125789296,0.06377646,69925.0,69917.0,0.0016084]
[1773125789998,0.00562,69928.0,69917.0,0.0016084]
[1773125789999,0.07712235,69928.0,69918.0,0.005]
[1773125790203,0.07712235,69928.0,69918.0,0.0051684]
[1773125791166,0.03,69925.0,69918.0,0.0051684]
[1773125792011,0.00022001,69924.0,69918.0,0.0766806]
[1773125792593,0.03022001,69924.0,69918.0,0.0766806]
[1773125793671,0.07149501,69935.0,69921.0,0.03340352]
[1773125793874,0.07149829,69932.0,69922.0,0.005]
[1773125794009,0.07149829,69932.0,69923.0,0.005]
[1773125794750,0.07149829,69932.0,69922.0,0.02840352]
[1773125795493,0.03,69932.0,69923.0,0.07150722]
[1773125797146,0.03,69932.0,69923.0,0.07250722]
[1773125797903,0.03,69930.0,69923.0,0.07250722]
[1773125798866,0.03,69930.0,69923.0,0.07250708]
[1773125799070,0.03,69930.0,69921.0,0.07150927]
[1773125799759,0.03,69930.0,69923.0,0.001]
[1773125800081,0.1015004,69930.0,69923.0,0.07150695]
[1773125800402,0.03,69929.0,69923.0,0.07150695]
[1773125801232,0.03022001,69930.0,69923.0,0.07150695]
[1773125801990,0.03,69928.0,69922.0,0.07150774]
[1773125803084,0.03,69929.0,69922.0,0.07150774]
[1773125806714,0.03,69929.0,69922.0,0.07650774]
[1773125807725,0.03,69929.0,69923.0,0.005]
[1773125808534,0.1015015,69929.0,69923.0,0.005]
[1773125810209,0.1015015,69929.0,69919.0,0.00144]
[1773125810210,0.00473645,69928.0,69900.0,0.0062095]
[1773125810419,0.03415273,69923.0,69900.0,0.0062095]
[1773125810632,0.03,69916.0,69901.0,0.00144]
[1773125810835,0.00473645,69915.0,69901.0,0.00144]
[1773125811482,0.03888918,69915.0,69911.0,0.0002]
[1773125811659,0.03,69914.0,69911.0,0.0002]
[1773125812275,0.03,69912.0,69911.0,0.0002]
[1773125812857,0.07151234,69918.0,69911.0,0.0052]
[1773125813468,0.03,69917.0,69911.0,0.0052]
[1773125813677,0.001,69914.0,69911.0,0.0052]
[1773125814404,0.03,69917.0,69911.0,0.0052]
[1773125815700,0.03,69915.0,69911.0,0.0052]
[1773125817684,0.03,69913.0,69912.0,0.00124]
[1773125817891,0.03,69913.0,69912.0,0.00144]
[1773125818823,0.03,69913.0,69909.0,0.00144]
[1773125819270,0.03,69913.0,69910.0,0.005]
[1773125819688,0.03,69912.0,69910.0,0.005]
[1773125819896,0.07151643,69915.0,69910.0,0.005]
[1773125820721,0.03,69914.0,69910.0,0.005]
[1773125821896,0.03,69922.0,69910.0,0.005]
[1773125824461,0.03,69920.0,69910.0,0.005]
[1773125824832,0.03,69920.0,69910.0,0.03416703]
[1773125825040,0.03,69920.0,69911.0,0.005]
[1773125826675,0.03,69918.0,69910.0,0.00477854]
[1773125828525,0.03,69918.0,69911.0,0.00144]
[1773125829074,0.03,69916.0,69912.0,0.005]
[1773125829276,0.04151336,69917.0,69912.0,0.005]
[1773125830371,0.07172112,69929.0,69912.0,0.07151812]
[1773125830512,0.07150287,69928.0,69916.0,0.005]
[1773125830718,0.07150287,69928.0,69918.0,0.005]
[1773125831504,0.03,69927.0,69918.0,0.005]
[1773125833145,0.03023,69925.0,69919.0,0.00144]
[1773125833573,0.03023,69925.0,69920.0,0.005]
[1773125833800,0.07712313,69928.0,69920.0,0.005]
[1773125833801,0.00562,69928.0,69920.0,0.005]
[1773125833962,0.07712261,69928.0,69921.0,0.00144]
[1773125834302,0.03,69927.0,69922.0,0.00144]
[1773125834698,0.03,69927.0,69923.0,0.00144]
[1773125834880,0.03,69927.0,69924.0,0.00144]
[1773125835095,0.03562,69928.0,69924.0,0.00144]
[1773125836264,0.10712249,69928.0,69924.0,0.00144]
[1773125837596,0.03562,69928.0,69924.0,0.00144]
[1773125838492,0.10712232,69928.0,69924.0,0.00144]
[1773125839017,0.10734233,69928.0,69924.0,0.00144]
[1773125840056,0.04172233,69929.0,69924.0,0.00644]
[1773125840458,0.04172233,69929.0,69924.0,0.00144]
[1773125845052,0.04172233,69929.0,69925.0,0.00144]
[1773125845253,0.04172233,69929.0,69926.0,0.00144]
[1773125845488,0.04172233,69929.0,69925.0,0.00144]
[1773125846748,0.04194234,69929.0,69925.0,0.00144]
[1773125848366,0.04194234,69929.0,69920.0,0.07627324]
[1773125848571,0.04194234,69929.0,69921.0,0.00144]
[1773125849091,0.04194234,69929.0,69922.0,0.00476295]
[1773125851613,0.00022001,69935.0,69923.0,0.00476295]
[1773125851828,0.07171506,69935.0,69925.0,0.00476295]
[1773125853184,0.03,69934.0,69925.0,0.00476295]
[1773125853896,0.03,69932.0,69926.0,0.07150416]
[1773125854126,0.03,69932.0,69927.0,0.00620295]
[1773125855321,0.03,69932.0,69928.0,0.00476295]
[1773125856901,0.07149598,69934.0,69928.0,0.00476295]
[1773125857097,0.03,69933.0,69928.0,0.00476295]
[1773125857687,0.03130617,69937.0,69929.0,0.00476295]
[1773125858220,0.03,69936.0,69929.0,0.00476295]
[1773125859009,1e-08,69938.0,69931.0,0.00476295]
[1773125859372,0.03039141,69941.0,69931.0,0.00476295]
[1773125859598,1e-08,69944.0,69934.0,0.03955998]
[1773125859773,0.07147779,69952.0,69938.0,0.03955998]
[1773125859974,0.00013061,69955.0,69941.0,0.00479329]
[1773125860207,0.00013061,69955.0,69943.0,0.03955998]
[1773125860378,0.10169252,69957.0,69944.0,0.00479329]
[1773125860590,0.03022001,69957.0,69945.0,0.00479329]
[1773125860795,0.03022001,69957.0,69946.0,0.00479329]
[1773125861172,0.03584001,69956.0,69948.0,0.00479329]
[1773125861377,0.0001714,69960.0,69950.0,0.00479329]
[1773125861579,0.0001714,69960.0,69951.0,0.00479329]
[1773125861979,0.0001714,69960.0,69950.0,0.03955998]
[1773125861980,0.0002232,69960.0,69950.0,0.03955998]
[1773125862484,0.0002232,69960.0,69950.0,0.09411655]
[1773125863084,0.0002232,69960.0,69951.0,0.0714786]
[1773125863256,0.00585076,69953.0,69932.0,0.071497]
[1773125863460,0.00585076,69948.0,69933.0,0.07293616]
[1773125863654,0.00585076,69948.0,69933.0,0.07149616]
[1773125863908,0.00585076,69942.0,69934.0,0.00144]
[1773125864493,0.00585076,69942.0,69933.0,0.07149616]
[1773125864662,0.00585076,69942.0,69935.0,0.00144]
[1773125865065,0.00585076,69942.0,69936.0,0.07149393]
[1773125868903,0.00585076,69938.0,69928.0,0.07712191]
[1773125869111,0.00585076,69936.0,69929.0,0.00144]
[1773125869510,0.00585076,69936.0,69930.0,0.00144]
[1773125871211,0.03,69934.0,69931.0,0.00144]
[1773125871416,0.07149495,69935.0,69924.0,0.07170614]
[1773125871417,0.00585076,69931.0,69924.0,0.07170614]
[1773125871639,0.00585076,69929.0,69926.0,0.00144]
[1773125871864,0.03,69930.0,69926.0,0.00144]
[1773125872062,0.03,69930.0,69927.0,0.00144]
[1773125872664,0.03585076,69934.0,69927.0,0.00144]
[1773125875021,0.03,69932.0,69927.0,0.00144]
[1773125875515,0.03585076,69932.0,69927.0,0.00144]
[1773125877543,0.10149837,69932.0,69927.0,0.00144]
[1773125882457,0.03,69931.0,69927.0,0.00144]
[1773125882697,0.03,69931.0,69927.0,0.07294294]
[1773125883535,0.03,69932.0,69927.0,0.07794294]
[1773125883734,0.03,69932.0,69927.0,0.07814294]
[1773125885338,0.07171496,69935.0,69927.0,0.07314294]
[1773125885339,0.03,69931.0,69927.0,0.07314294]
[1773125885983,0.03,69931.0,69927.0,0.07814294]
[1773125886342,0.03022001,69935.0,69927.0,0.07814294]
[1773125887424,0.03,69934.0,69927.0,0.07814294]
[1773125888574,0.03,69933.0,69927.0,0.07814294]
[1773125890609,0.10149732,69933.0,69925.0,0.07193489]
[1773125890874,0.10149732,69933.0,69926.0,0.00144]
[1773125890875,0.03,69929.0,69926.0,0.00144]
[1773125891719,0.03,69929.0,69927.0,0.0002]
[1773125891907,0.03,69932.0,69927.0,0.0002]
[1773125895373,0.1014985,69932.0,69927.0,0.0002]
[1773125898316,0.10171851,69932.0,69927.0,0.0002]
[1773125899490,0.10171851,69932.0,69926.0,0.00144]
[1773125901809,0.03022001,69932.0,69926.0,0.0729435]
[1773125902433,0.03022001,69932.0,69926.0,0.08895887]
[1773125903304,0.03022001,69932.0,69927.0,0.01601537]
[1773125903702,0.03227907,69934.0,69927.0,0.01601537]
[1773125905440,0.03227907,69934.0,69928.0,0.00144]
[1773125912526,0.03249908,69934.0,69928.0,0.00144]
[1773125915194,0.03249908,69934.0,69928.0,0.01745537]
[1773125916135,0.03249908,69934.0,69928.0,0.00144]
[1773125921945,0.00022001,69941.0,69931.0,0.01601537]
[1773125921946,0.00022001,69939.0,69931.0,0.01601537]
[1773125922895,0.03022001,69939.0,69932.0,0.01745537]
[1773125923305,0.03022001,69939.0,69932.0,0.01601537]
[1773125923503,0.03022001,69939.0,69933.0,0.00144]
[1773125923905,0.03,69938.0,69934.0,0.00144]
[1773125924134,0.03,69938.0,69934.0,0.01745537]
[1773125925008,0.00022001,69941.0,69935.0,0.01601537]
[1773125925206,0.00022001,69941.0,69934.0,0.00144]
[1773125925413,0.03,69940.0,69934.0,0.07293535]
[1773125925908,0.03,69940.0,69935.0,0.00144]
[1773125926105,0.03,69940.0,69935.0,0.01745537]
[1773125926940,0.03,69940.0,69936.0,0.00144]
[1773125927138,0.03,69940.0,69937.0,0.00144]
[1773125929890,0.03022001,69940.0,69937.0,0.00144]
[1773125931286,0.03,69939.0,69937.0,0.00144]
[1773125932396,0.00022001,69940.0,69937.0,0.00144]
[1773125933516,0.07149087,69939.0,69919.0,0.01621537]
[1773125933711,0.07149087,69939.0,69920.0,0.01745537]
[1773125933712,0.03,69936.0,69920.0,0.01745537]
[1773125933908,0.03,69936.0,69921.0,0.00144]
[1773125934230,0.07149087,69939.0,69926.0,0.03423215]
[1773125934439,0.07149087,69939.0,69928.0,0.01601537]
[1773125934633,0.07149087,69939.0,69930.0,0.01601537]
[1773125934866,0.03,69938.0,69930.0,0.01601537]
[1773125935859,0.03,69936.0,69930.0,0.01601537]
[1773125937049,0.07149291,69937.0,69930.0,0.01601537]
[1773125937922,0.00022001,69940.0,69931.0,0.01601537]
[1773125938131,0.07148524,69945.0,69933.0,0.01601537]
[1773125938333,0.07148524,69945.0,69935.0,0.01601537]
[1773125938515,0.07148524,69945.0,69937.0,0.01601537]
[1773125939016,0.00022001,69943.0,69937.0,0.01601537]
[1773125940533,0.0001418,69951.0,69940.0,0.03423215]
[1773125940741,0.00022001,69954.0,69940.0,0.03423215]
[1773125940742,0.07147679,69953.0,69942.0,0.01601537]
[1773125940987,0.07147887,69951.0,69944.0,0.01601537]
[1773125941625,0.00022001,69954.0,69944.0,0.01601537]
[1773125941831,0.00584001,69956.0,69944.0,0.03423215]
[1773125942003,0.00584001,69956.0,69945.0,0.01601537]
[1773125942363,0.07161225,69959.0,69943.0,0.00144]
[1773125942364,0.0001418,69959.0,69947.0,0.01601537]
[1773125942568,0.0001418,69959.0,69950.0,0.01601537]
[1773125942766,0.0001418,69959.0,69949.0,0.05454587]
[1773125942767,0.0001418,69959.0,69952.0,0.01601537]
[1773125944449,0.0001418,69959.0,69951.0,0.00144]
[1773125944847,0.0001418,69959.0,69945.0,0.00800768]
[1773125945031,0.03827451,69958.0,69943.0,0.07148675]
[1773125945395,0.03827451,69958.0,69946.0,0.00144]
[1773125945567,0.03827451,69958.0,69943.0,0.07949443]
[1773125945718,0.03827451,69958.0,69947.0,0.00144]
[1773125946139,0.03827451,69958.0,69948.0,0.00144]
[1773125946540,0.03827451,69958.0,69943.0,0.07949443]
[1773125946744,0.03827451,69958.0,69949.0,0.00144]
[1773125946942,0.07147247,69957.0,69949.0,0.00144]
[1773125947171,0.03827451,69956.0,69950.0,0.00144]
[1773125947604,0.03827451,69956.0,69951.0,0.00144]
[1773125948018,0.03827451,69956.0,69945.0,0.0794915]
[1773125948360,0.03827451,69956.0,69946.0,0.00144]
[1773125948531,0.03827451,69956.0,69945.0,0.0794915]
[1773125948701,0.03827451,69956.0,69946.0,0.00144]
[1773125949096,0.07147247,69957.0,69948.0,0.00800768]
[1773125949097,0.07147451,69955.0,69948.0,0.00800768]
[1773125949513,0.07147383,69956.0,69948.0,0.00800768]
[1773125950584,0.03,69955.0,69948.0,0.00800768]
[1773125952643,0.03,69955.0,69949.0,0.07148065]
[1773125952986,0.07147383,69956.0,69950.0,0.00800768]
[1773125954779,0.00036181,69959.0,69950.0,0.00800768]
[1773125954780,0.10183229,69959.0,69952.0,0.00800768]
[1773125955107,0.03036181,69959.0,69954.0,0.00800768]
[1773125955739,0.10183245,69959.0,69954.0,0.00800768]
[1773125957336,1e-08,69963.0,69955.0,0.07147451]
[1773125957541,1e-08,69963.0,69956.0,0.00800768]
[1773125958269,1e-08,69963.0,69958.0,0.00800768]
[1773125958474,1e-08,69963.0,69960.0,0.00800768]
[1773125958688,0.0248566,69967.0,69962.0,0.00800768]
[1773125958889,0.0249474,69967.0,69962.0,0.00800768]
[1773125959499,0.09640968,69967.0,69959.0,0.00144]
[1773125959702,0.0019923,69965.0,69945.0,0.0048824]
[1773125959907,0.03,69961.0,69946.0,0.00144]
[1773125960083,0.03,69959.0,69947.0,0.0048824]